bitfinex/quotes_ETHUSD_20240928
["timestamp","ask_amount","ask_price","bid_price","bid_amount"]
[1727503327234,1.21287602,2690.5,2690.3,3.71695]
[1727503327402,0.04643098,2690.5,2690.3,3.71695]
[1727503327752,0.04643098,2690.5,2690.4,3.71691]
[1727503328731,1.16644504,2690.7,2690.4,3.71691]
[1727503330839,0.04634846,2690.6,2690.4,3.71691]
[1727503330997,0.04634846,2690.6,2690.4,4.552646]
[1727503333402,0.04634846,2690.6,2690.4,3.71691]
[1727503333602,0.8673,2690.5,2690.3,3.71695]
[1727503333909,2.03374504,2690.5,2690.1,3.7172]
[1727503334251,2.03374504,2690.5,2690.2,0.371729]
[1727503334548,2.03374504,2690.5,2690.1,7.43444]
[1727503334958,0.04628752,2690.4,2690.1,7.43444]
[1727503335648,1.21273256,2690.4,2690.1,3.7172]
[1727503336020,1.21273256,2690.4,2690.1,7.43445]
[1727503336233,1.21273256,2690.4,2690.1,3.7172]
[1727503336455,1.21273256,2690.4,2689.9,3.71752]
[1727503336609,4.58516,2689.8,2689.3,3.71836]
[1727503336811,1.16400788,2689.7,2689.4,3.71822]
[1727503337016,1.16400788,2689.6,2689.4,4.17851578]
[1727503337221,1.16400788,2689.7,2689.4,4.17851578]
[1727503338382,0.04558216,2689.6,2689.4,4.17851578]
[1727503339615,2.03130788,2689.8,2689.4,4.17851578]
[1727503339816,0.04529567,2689.5,2689.4,3.71822]
[1727503340551,2.08130794,2689.8,2689.4,3.71822]
[1727503340717,0.04529567,2689.5,2689.4,3.71822]
[1727503341050,0.04529567,2689.5,2689.3,3.71838]
[1727503341363,0.04487474,2689.4,2689.0,7.43757]
[1727503341645,4.88204788,2689.6,2689.0,3.71877]
[1727503341646,0.8673,2689.3,2689.0,3.71877]
[1727503341851,0.91207449,2689.3,2689.0,3.71877]
[1727503345255,0.04477449,2689.3,2689.0,4.555482]
[1727503345470,0.04477449,2689.3,2689.2,3.71857]
[1727503345621,2.03130788,2689.6,2689.2,7.43714]
[1727503345829,0.04432327,2689.3,2689.2,3.71857]
[1727503346029,0.8673,2689.6,2689.2,3.71857]
[1727503346228,0.04432327,2689.3,2689.2,3.71857]
[1727503346928,0.8673,2689.6,2689.2,3.71857]
[1727503347270,0.8673,2689.6,2689.3,3.71839]
[1727503347432,0.0444891,2689.5,2689.1,3.7187]
[1727503347632,0.0444891,2689.5,2689.1,7.43734]
[1727503348329,0.0444891,2689.5,2689.1,3.71864]
[1727503348549,0.0444891,2689.5,2689.2,3.71857]
[1727503350284,0.0444891,2689.5,2689.1,3.71864]
[1727503350794,0.0444891,2689.5,2689.1,7.43728]
[1727503351292,0.0444891,2689.5,2689.1,3.71864]
[1727503352962,0.0444891,2689.5,2689.1,3.71862]
[1727503353780,0.0444891,2689.5,2689.2,3.71856]
[1727503354085,0.0444891,2689.5,2689.1,3.71862]
[1727503354953,0.0444891,2689.5,2689.1,7.43726]
[1727503358273,0.0444891,2689.5,2688.9,0.80172799]
[1727503358274,0.8918,2689.4,2688.9,8.23958799]
[1727503358469,0.8918,2689.4,2688.9,7.43786]
[1727503358681,0.04448291,2689.3,2688.9,7.43786]
[1727503359088,0.04448291,2689.3,2688.9,3.71889]
[1727503359720,0.04448291,2689.3,2689.0,3.71884]
[1727503363378,0.04448291,2689.3,2689.1,3.71862]
[1727503363632,0.04448291,2689.3,2689.2,3.71857]
[1727503364029,0.8918,2689.8,2689.2,0.8556]
[1727503364259,0.8918,2690.0,2689.7,3.7178]
[1727503364549,0.8918,2690.0,2689.8,3.71774]
[1727503364751,0.8918,2690.0,2689.9,3.71761]
[1727503364944,0.8918,2690.3,2689.9,3.71761]
[1727503365848,0.8918,2690.3,2689.9,3.71753]
[1727503367567,0.8918,2690.3,2690.0,3.71744]
[1727503368065,0.8918,2690.5,2690.1,3.71733]
[1727503368269,0.8918,2690.5,2689.8,4.57325]
[1727503368423,3.71691,2690.4,2689.9,3.71752]
[1727503368630,3.76114768,2690.4,2689.9,3.71752]
[1727503369264,0.04423768,2690.4,2689.9,3.71752]
[1727503369827,0.04423768,2690.4,2689.8,3.71765]
[1727503370033,3.81123774,2690.4,2689.8,7.43532]
[1727503370257,0.8394,2690.3,2689.8,7.43531]
[1727503370459,3.81114085,2690.3,2689.6,3.71793]
[1727503370629,0.8394,2690.0,2689.6,3.71793]
[1727503370990,0.8394,2690.0,2689.4,3.71822]
[1727503370991,0.8394,2690.0,2689.4,7.43638]
[1727503371283,0.04387204,2689.9,2689.5,3.71814]
[1727503373034,0.04387204,2689.9,2689.6,3.71802]
[1727503374030,0.04387204,2689.9,2689.4,3.71816]
[1727503374031,0.04387204,2689.9,2689.5,3.71815]
[1727503377383,1.20787992,2689.9,2689.5,3.71815]
[1727503377751,0.8394,2689.8,2689.4,3.71816]
[1727503377949,4.55753,2689.6,2689.0,3.71872]
[1727503378154,4.55753,2689.6,2689.0,7.43744]
[1727503378155,1.16400788,2689.5,2689.0,7.43744]
[1727503378355,1.20751378,2689.5,2689.0,7.43744]
[1727503378549,0.8394,2689.4,2689.0,3.71872]
[1727503378749,0.0433401,2689.3,2689.0,3.71872]
[1727503379496,0.0433401,2689.3,2689.1,3.71871]
[1727503380072,0.0433401,2689.3,2689.0,3.71872]
[1727503380281,0.0433401,2689.3,2689.0,7.43748]
[1727503380669,0.0433401,2689.3,2689.0,3.71872]
[1727503380867,1.207082,2689.3,2689.0,7.43747]
[1727503381162,1.207082,2689.3,2689.0,3.71872]
[1727503381945,0.0433401,2689.3,2689.0,3.71872]
[1727503382175,1.207082,2689.3,2689.0,3.71872]
[1727503382382,1.207082,2689.3,2689.1,3.71869]
[1727503383255,1.207082,2689.3,2689.0,3.71872]
[1727503383456,0.0433401,2689.3,2689.2,3.71857]
[1727503383655,0.0433401,2689.3,2689.0,4.174852]
[1727503383857,1.207082,2689.3,2689.0,4.174852]
[1727503384169,0.0433401,2689.3,2689.1,3.7187]
[1727503384464,0.0433401,2689.3,2689.0,3.71872]
[1727503384694,1.207082,2689.3,2689.0,3.71872]
[1727503384897,1.207082,2689.3,2689.1,3.71871]
[1727503385282,1.207082,2689.3,2689.0,3.71872]
[1727503386212,1.207082,2689.3,2689.0,7.43747]
[1727503386355,1.207082,2689.3,2689.0,3.71872]
[1727503386976,1.207082,2689.3,2689.1,3.71865]
[1727503387394,0.0433401,2689.3,2689.1,3.71865]
[1727503388358,0.0433401,2689.3,2689.0,7.43749]
[1727503388564,0.0433401,2689.3,2689.0,3.71872]
[1727503389099,0.0433401,2689.3,2689.2,3.71857]
[1727503390998,0.0433401,2689.3,2689.2,4.58597]
[1727503391383,1.1637419,2689.5,2689.2,4.58597]
[1727503391581,0.04301968,2689.4,2689.2,4.58597]
[1727503393212,0.04301968,2689.4,2689.3,3.71843]
[1727503393793,1.1637419,2689.6,2689.3,3.71843]
[1727503393999,0.04316387,2689.5,2689.3,3.71843]
[1727503394181,0.04316387,2689.5,2689.4,3.7183]
[1727503394884,1.1637419,2689.8,2689.5,3.7181]
[1727503395108,0.04335999,2689.7,2689.5,3.7181]
[1727503395316,0.04335999,2689.7,2689.2,0.8674]
[1727503395519,2.0233419,2689.5,2689.2,7.43694]
[1727503396023,0.043254,2689.4,2689.2,7.43694]
[1727503396377,0.043254,2689.4,2689.3,3.71843]
[1727503399301,0.043254,2689.4,2689.3,4.29031771]
[1727503399852,0.04315551,2689.4,2689.3,4.29031771]
[1727503400140,1.1637419,2689.6,2689.3,4.29031771]
[1727503400438,1.1637419,2689.6,2689.3,3.71843]
[1727503400601,0.0433369,2689.5,2689.3,3.71843]
[1727503401098,0.0433369,2689.5,2689.2,3.71845]
[1727503401249,1.2070788,2689.5,2689.2,3.71845]
[1727503402342,0.0433369,2689.5,2689.2,3.71845]
[1727503402574,0.0433369,2689.5,2689.0,0.8674]
[1727503402575,0.0433369,2689.5,2689.4,3.7183]
[1727503402855,0.0433369,2689.5,2689.4,0.8674]
[1727503403032,1.1637419,2689.7,2689.4,4.5857]
[1727503403347,0.04338512,2689.6,2689.4,4.5857]
[1727503403844,0.04338512,2689.6,2689.5,3.71816]
[1727503404003,1.1637419,2689.8,2689.7,3.71788]
[1727503404208,1.1637419,2690.0,2689.8,3.71774]
[1727503404546,1.1637419,2690.1,2689.8,8.30288]
[1727503404854,1.1637419,2690.1,2689.8,8.30274]
[1727503405057,0.04382062,2690.0,2689.8,8.30274]
[1727503406246,0.04382062,2690.0,2689.8,4.58507]
[1727503407090,0.04389805,2689.9,2689.8,4.58507]
[1727503407362,2.0233419,2690.2,2689.8,4.58507]
[1727503407737,0.04407677,2690.1,2689.8,4.58507]
[1727503408745,1.20781867,2690.1,2689.8,4.58507]
[1727503408922,0.04407677,2690.1,2689.8,8.30274]
[1727503409121,0.04407677,2690.1,2689.8,4.58507]
[1727503409358,0.04407677,2690.1,2689.8,3.71767]
[1727503409672,1.20781867,2690.1,2689.8,3.71767]
[1727503411425,1.20781867,2690.1,2689.6,7.43586]
[1727503412827,4.92515867,2690.1,2689.6,3.71793]
[1727503413263,0.8623,2689.9,2689.6,3.71793]
[1727503413746,0.04309611,2689.8,2689.6,3.71793]
[1727503414127,0.04309611,2689.8,2689.6,7.43588]
[1727503414328,0.04309611,2689.8,2689.6,3.71793]
[1727503414824,0.04309611,2689.8,2689.6,7.43587]
[1727503415741,0.04309611,2689.8,2689.7,3.71788]
[1727503416456,0.8623,2689.7,2689.2,3.71844]
[1727503416664,0.8623,2689.7,2689.3,3.71831]
[1727503416665,1.16441281,2689.6,2689.3,3.71831]
[1727503416845,1.20743851,2689.6,2689.3,3.71831]
[1727503417434,0.0430257,2689.6,2689.3,3.71831]
[1727503417766,1.20743851,2689.6,2689.3,3.71831]
[1727503420778,1.16441281,2689.5,2689.1,7.43724]
[1727503421088,1.16441281,2689.5,2689.1,3.71859]
[1727503421089,0.90524722,2689.4,2689.1,3.71859]
[1727503421288,0.90524722,2689.4,2689.2,3.71857]
[1727503423196,0.90524722,2689.4,2689.1,7.43722]
[1727503423695,0.90524722,2689.4,2689.1,3.71859]
[1727503424081,0.90524722,2689.4,2689.1,7.43723]
[1727503424654,2.06966003,2689.4,2689.1,3.71859]
[1727503424883,0.90524722,2689.4,2689.1,3.71859]
[1727503425090,0.90524722,2689.4,2689.1,7.43722]
[1727503426102,0.90524722,2689.4,2689.1,3.71859]
[1727503427097,0.90524722,2689.4,2689.1,3.71871]
[1727503427296,0.90524722,2689.4,2689.0,7.43759]
[1727503427297,2.06966003,2689.4,2689.0,7.43759]
[1727503427999,2.06966003,2689.4,2689.0,3.71875]
[1727503428159,2.06966003,2689.4,2689.1,3.7187]
[1727503428364,2.06966003,2689.4,2689.0,3.71875]
[1727503428620,2.06966003,2689.4,2689.0,7.43751]
[1727503428798,2.06966003,2689.4,2689.0,3.71875]
[1727503429096,2.06966003,2689.4,2689.0,7.43752]
[1727503429500,2.06966003,2689.4,2689.0,3.71875]
[1727503429703,2.02331281,2689.3,2688.8,3.71904]
[1727503430007,2.06576013,2689.3,2688.8,3.71904]
[1727503430604,2.06576013,2689.3,2688.9,3.71898]
[1727503431289,2.06576013,2689.3,2688.8,3.71904]
[1727503431491,2.06576013,2689.3,2688.9,0.371904]
[1727503431807,2.06576013,2689.3,2688.9,3.71899]
[1727503432392,0.90134732,2689.3,2688.9,3.71899]
[1727503436322,0.90134732,2689.3,2689.0,3.71883]
[1727503442719,2.06562756,2689.3,2689.0,3.71883]
[1727503444013,2.06562756,2689.3,2688.8,3.71904]
[1727503444217,2.06562756,2689.3,2688.9,3.71893]
[1727503445091,2.06562756,2689.3,2689.0,3.71884]
[1727503449215,2.06562756,2689.3,2688.8,4.63916872]
[1727503449388,2.06562756,2689.3,2688.7,1.55614723]
[1727503449389,1.16428024,2689.1,2688.7,3.71925]
[1727503449588,1.16428024,2689.1,2688.4,6.19620723]
[1727503449589,1.2142803,2689.1,2688.4,6.19620723]
[1727503449923,0.8654,2688.9,2688.6,3.71939]
[1727503450220,0.04189841,2688.8,2688.6,3.71932]
[1727503453709,0.04189841,2688.8,2688.5,3.71953]
[1727503453919,0.04189841,2688.8,2688.5,5.27567723]
[1727503454885,0.04189841,2688.8,2688.6,3.71937]
[1727503455227,0.04189841,2688.8,2688.5,5.27565723]
[1727503456817,0.04189841,2688.8,2688.6,3.71937]
[1727503458322,0.04189841,2688.8,2688.5,5.27564723]
[1727503458660,0.04189841,2688.8,2688.6,3.7194]
[1727503464259,0.04189841,2688.8,2688.4,6.19625723]
[1727503464260,0.04189841,2688.8,2688.5,3.71953]
[1727503464955,1.20617865,2688.8,2688.5,3.71953]
[1727503465545,0.04189841,2688.8,2688.5,3.71953]
[1727503466081,0.04189841,2688.8,2688.4,6.19625723]
[1727503466082,0.04189841,2688.8,2688.4,5.27575723]
[1727503466251,2.02968024,2688.7,2688.2,5.27601723]
[1727503466577,0.04117756,2688.7,2688.5,3.71953]
[1727503467065,0.04109461,2688.6,2688.5,3.71953]
[1727503467266,1.16428024,2688.8,2688.5,3.71953]
[1727503467447,0.04109461,2688.6,2688.5,3.71953]
[1727503467648,1.16428024,2688.8,2688.5,3.71953]
[1727503467849,0.04109461,2688.6,2688.4,5.27580723]
[1727503468078,1.16428024,2688.8,2688.4,8.99546723]
[1727503468231,1.16428024,2688.8,2688.5,3.71952]
[1727503468699,1.16428024,2688.8,2688.4,5.27580723]
[1727503469569,1.16428024,2688.8,2688.4,5.27572723]
[1727503469775,1.16428024,2688.8,2688.4,8.99533723]
[1727503470142,0.04117756,2688.7,2688.4,5.27572723]
[1727503470354,1.16428024,2688.8,2688.4,3.71958]
[1727503470555,0.04109461,2688.6,2688.4,3.71958]
[1727503470837,0.04101165,2688.5,2688.4,4.3091179]
[1727503471061,1.16428024,2688.8,2688.7,3.71926]
[1727503471378,1.16428024,2688.9,2688.7,5.27540723]
[1727503472272,1.16428024,2688.8,2688.7,5.27540723]
[1727503472577,1.16428024,2688.9,2688.8,3.71913]
[1727503473451,1.16475043,2688.9,2688.8,3.71913]
[1727503473650,1.20596812,2688.9,2688.8,3.71913]
[1727503474376,0.04121769,2688.9,2688.8,3.71913]
[1727503474539,1.59359134,2688.9,2688.8,3.71913]
[1727503474737,1.59359134,2688.9,2688.7,5.27540723]
[1727503474939,1.16522192,2688.8,2688.7,5.27540723]
[1727503475139,1.20635668,2688.8,2688.7,5.27540723]
[1727503478365,1.20635668,2688.8,2688.7,7.03568795]
[1727503479078,0.04113476,2688.8,2688.7,7.03568795]
[1727503479581,1.20635668,2688.8,2688.7,7.03568795]
[1727503479789,0.04113476,2688.8,2688.7,7.03568795]
[1727503481385,1.20635668,2688.8,2688.7,7.03568795]
[1727503481675,0.04113476,2688.8,2688.7,7.03568795]
[1727503481878,1.20635668,2688.8,2688.7,7.03568795]
[1727503482547,0.04113476,2688.8,2688.7,7.03568795]
[1727503483968,0.04113476,2688.8,2688.7,7.11006075]
[1727503484296,1.94254271,2689.3,2688.7,7.11006075]
[1727503484297,1.16522192,2689.2,2688.7,7.11006075]
[1727503484584,1.16522192,2689.2,2689.1,5.27485723]
[1727503485244,1.16522192,2689.3,2689.1,5.27485723]
[1727503485852,0.04159653,2689.2,2689.1,5.27485723]
[1727503486275,1.16522192,2689.3,2689.1,5.27485723]
[1727503486578,0.04159653,2689.2,2689.1,5.27485723]
[1727503486748,1.16522192,2689.3,2689.1,5.27485723]
[1727503486948,1.16522192,2689.3,2689.1,1.55614723]
[1727503487144,1.20681845,2689.2,2689.1,1.55614723]
[1727503488390,0.04159653,2689.2,2689.1,1.55614723]
[1727503488711,1.16522192,2689.3,2689.1,5.27485723]
[1727503489188,0.04159653,2689.2,2689.1,5.27485723]
[1727503489694,1.16522192,2689.3,2689.1,5.27485723]
[1727503490067,0.04159653,2689.2,2689.1,5.27485723]
[1727503490388,1.16522192,2689.3,2689.1,5.27485723]
[1727503490690,0.04159653,2689.2,2689.1,5.27485723]
[1727503490988,1.16522192,2689.3,2689.1,5.27485723]
[1727503491356,0.04159653,2689.2,2689.1,5.27485723]
[1727503491556,1.16522192,2689.3,2689.1,1.55614723]
[1727503491795,0.04159653,2689.2,2688.9,1.55614723]
[1727503492095,2.01142192,2689.1,2688.8,5.27517723]
[1727503492461,2.05293554,2689.1,2688.8,5.27517723]
[1727503492996,1.16522192,2689.0,2688.8,5.27517723]
[1727503493364,0.04147348,2688.9,2688.8,5.27517723]
[1727503494383,1.16522192,2689.0,2688.9,3.71899]
[1727503494890,2.39857365,2689.1,2688.9,3.71899]
[1727503494891,2.01142192,2689.1,2688.9,3.71899]
[1727503495101,1.16522192,2689.0,2688.9,3.71899]
[1727503495512,1.16522192,2689.0,2688.8,5.27517723]
[1727503496014,1.16522192,2689.0,2688.8,8.99421723]
[1727503496166,1.16522192,2689.0,2688.8,5.27517723]
[1727503496570,0.04139544,2688.9,2688.8,8.99422723]
[1727503497183,0.04139544,2688.9,2688.8,5.27517723]
[1727503499898,1.16522192,2689.1,2689.0,3.71885]
[1727503500107,1.16522192,2689.1,2689.0,5.27499723]
[1727503500408,1.20680056,2689.1,2689.0,5.27499723]
[1727503500610,1.20680056,2689.1,2689.0,1.55614723]
[1727503501229,1.20680056,2689.1,2689.0,5.27499723]
[1727503501416,1.20680056,2689.1,2689.0,6.18229723]
[1727503502195,0.04157864,2689.1,2689.0,6.18229723]
[1727503502396,1.16522192,2689.3,2689.1,3.71864]
[1727503503130,1.16522192,2689.3,2689.1,3.71869]
[1727503503426,2.01142192,2689.3,2689.0,5.27499723]
[1727503503797,0.03825267,2689.2,2689.0,8.99376723]
[1727503503997,2.01142192,2689.3,2689.0,8.99376723]
[1727503504295,0.038504,2689.1,2689.0,8.99376723]
[1727503504508,2.01142192,2689.3,2689.1,3.71871]
[1727503506729,1.16522192,2689.3,2689.2,3.71857]
[1727503506933,1.16522192,2689.4,2689.2,3.71857]
[1727503507431,0.03866983,2689.3,2689.2,3.71857]
[1727503509634,1.20389175,2689.3,2689.2,3.71857]
[1727503510037,1.20389175,2689.3,2689.2,5.27471723]
[1727503510535,0.03866983,2689.3,2689.2,6.17406595]
[1727503510697,1.16522192,2689.5,2689.2,6.17406595]
[1727503510904,1.16522192,2689.6,2689.4,5.27444723]
[1727503511136,1.16522192,2689.5,2689.4,5.27444723]
[1727503511948,1.16522192,2689.6,2689.4,5.27444723]
[1727503513797,1.16522192,2689.6,2689.4,8.99267723]
[1727503513928,1.16522192,2689.6,2689.4,5.27437723]
[1727503514345,1.16522192,2689.7,2689.6,3.71802]
[1727503514647,1.16522192,2689.9,2689.8,3.71774]
[1727503514945,0.9209,2690.2,2689.8,5.27388723]
[1727503514946,1.16522192,2690.0,2689.8,5.27388723]
[1727503515146,1.16522192,2690.1,2689.9,1.55614723]
[1727503515307,1.16522192,2690.1,2689.9,5.27372723]
[1727503515506,1.16522192,2690.1,2689.9,1.55614723]
[1727503518251,0.03788941,2690.0,2689.9,1.55614723]
[1727503518815,2.08612192,2690.2,2689.9,1.55614723]
[1727503519043,0.03788941,2690.0,2689.9,1.55614723]
[1727503519244,2.08612192,2690.2,2689.9,1.55614723]
[1727503519854,0.03797227,2690.1,2689.9,1.55614723]
[1727503521517,0.03797227,2690.1,2689.9,5.27372723]
[1727503527559,0.03797227,2690.1,2689.9,1.55614723]
[1727503530329,0.03797227,2690.1,2689.8,6.19494723]
[1727503531557,0.03797227,2690.1,2689.9,3.71758]
[1727503531878,0.03797227,2690.1,2689.8,2.47724723]
[1727503532881,0.03797227,2690.1,2689.8,6.19489723]
[1727503533088,0.03797227,2690.1,2689.8,5.27379723]
[1727503534245,0.03797227,2690.1,2689.9,3.71754]
[1727503536185,0.03797227,2690.1,2689.8,5.27379723]
[1727503536386,0.03797227,2690.1,2689.9,3.71758]
[1727503536558,0.03797227,2690.1,2689.8,8.99146723]
[1727503536767,0.03797227,2690.1,2689.8,5.27379723]
[1727503537581,0.03797227,2690.1,2689.9,3.71753]
[1727503539549,0.03797227,2690.1,2689.8,5.27379723]
[1727503539749,0.03797227,2690.1,2689.9,3.71761]
[1727503544193,0.03797227,2690.1,2689.9,5.27375723]
[1727503546909,0.03797227,2690.1,2690.0,4.60627]
[1727503547487,2.00172192,2690.5,2690.2,3.71713]
[1727503547697,2.00172192,2690.5,2690.3,5.27308723]
[1727503547908,0.8365,2690.5,2690.3,5.27308723]
[1727503548124,0.03773866,2690.4,2690.3,5.27308723]
[1727503551774,0.03773866,2690.4,2690.3,1.55614723]
[1727503551999,1.20296058,2690.4,2690.3,1.55614723]
[1727503552216,0.03773866,2690.4,2690.3,1.55614723]
[1727503553636,1.20296058,2690.4,2690.3,1.55614723]
[1727503555117,0.03773866,2690.4,2690.3,5.27319723]
[1727503555624,1.20296058,2690.4,2690.3,5.27319723]
[1727503556124,0.03773866,2690.4,2690.3,5.27319723]
[1727503557813,1.20296058,2690.4,2690.3,5.27319723]
[1727503558013,0.03773866,2690.4,2690.3,5.27319723]
[1727503558320,0.03773866,2690.4,2690.3,6.17223595]
[1727503560049,1.16522192,2690.5,2690.3,2.45518595]
[1727503560226,1.16522192,2690.5,2690.4,5.27301723]
[1727503562656,0.03681631,2690.5,2690.4,5.27301723]
[1727503562857,0.03681631,2690.5,2690.4,7.02652395]
[1727503563219,1.16522192,2690.9,2690.7,3.7165]
[1727503563420,1.16522192,2690.9,2690.8,3.71636]
[1727503563660,1.55237365,2691.0,2690.8,3.71636]
[1727503563834,1.16370949,2690.9,2690.8,3.71636]
[1727503564165,1.16370949,2690.9,2690.8,5.27250723]
[1727503565848,1.16370949,2690.9,2690.8,6.17140795]
[1727503566025,1.20097399,2690.9,2690.8,6.17140795]
[1727503566222,0.0372645,2690.9,2690.8,2.45504795]
[1727503566425,1.20097399,2690.9,2690.8,2.45504795]
[1727503566665,0.0372645,2690.9,2690.8,6.17140795]
[1727503567361,0.0372645,2690.9,2690.8,2.45504795]
[1727503568462,1.20097399,2690.9,2690.8,2.45504795]
[1727503568756,1.20097399,2690.9,2690.8,1.55614723]
[1727503570441,0.0372645,2690.9,2690.8,1.55614723]
[1727503571551,1.20097399,2690.9,2690.8,1.55614723]
[1727503571755,0.0372645,2690.9,2690.8,1.55614723]
[1727503576979,0.0372645,2690.9,2690.8,5.27250723]
[1727503577141,0.0372645,2690.9,2690.8,1.55614723]
[1727503585714,0.0372645,2690.9,2690.6,1.55614723]
[1727503585715,1.20097399,2690.9,2690.6,1.55614723]
[1727503585887,0.9167,2690.8,2690.6,1.55614723]
[1727503586093,0.03721578,2690.7,2690.6,1.55614723]
[1727503586714,2.08040949,2690.8,2690.6,1.55614723]
[1727503586873,0.03721578,2690.7,2690.6,1.55614723]
[1727503587073,2.08040949,2690.8,2690.4,1.55614723]
[1727503587418,1.20092527,2690.7,2690.4,1.55614723]
[1727503589215,1.20092527,2690.7,2690.4,5.27305723]
[1727503589415,0.03706367,2690.6,2690.4,5.27305723]
[1727503589778,0.03706367,2690.6,2690.4,3.71691]
[1727503589981,0.03706367,2690.6,2690.5,1.55614723]
[1727503590180,0.9047,2690.5,2690.1,5.27338723]
[1727503590413,0.9047,2690.5,2689.9,1.55614723]
[1727503590414,2.06761257,2690.4,2689.9,1.55614723]
[1727503590702,1.16291257,2690.2,2690.0,3.71743]
[1727503591092,1.16291257,2690.2,2689.9,8.99126723]
[1727503591433,1.16291257,2690.2,2689.9,5.27366723]
[1727503591887,1.16291257,2690.2,2690.0,3.71738]
[1727503592976,0.03535742,2690.1,2690.0,3.71738]
[1727503598816,1.16291257,2690.2,2690.0,3.71738]
[1727503598978,0.03535742,2690.1,2690.0,3.71738]
[1727503599716,1.16291257,2690.3,2690.0,3.71738]
[1727503599891,0.03535742,2690.1,2690.0,3.71738]
[1727503600092,1.16291257,2690.3,2690.0,3.71738]
[1727503600296,0.03544031,2690.2,2690.0,3.71738]
[1727503600502,1.16291257,2690.3,2690.0,3.71738]
[1727503600700,0.03544031,2690.2,2690.1,3.71733]
[1727503600924,1.16291257,2690.3,2690.1,3.71733]
[1727503601127,0.03544031,2690.2,2690.1,3.71733]
[1727503601493,1.16291257,2690.3,2690.1,3.71733]
[1727503601677,0.03544031,2690.2,2690.1,3.71733]
[1727503601880,1.16291257,2690.3,2690.1,3.71733]
[1727503602117,0.03530174,2690.2,2690.1,3.71733]
[1727503602483,1.16291257,2690.3,2690.1,3.71733]
[1727503602708,0.03642054,2690.2,2690.1,3.71733]
[1727503602914,1.16291257,2690.3,2690.1,3.71733]
[1727503603187,0.03642054,2690.2,2690.1,3.71733]
[1727503603586,1.16291257,2690.3,2690.1,3.71733]
[1727503603800,0.03642054,2690.2,2690.1,3.71733]
[1727503604025,1.16291257,2690.3,2690.1,3.71733]
[1727503604225,1.16291257,2690.3,2690.2,3.71719]
[1727503604429,1.16291257,2690.4,2690.3,3.71705]
[1727503604748,1.16291257,2690.5,2690.3,3.71705]
[1727503606138,0.03659055,2690.4,2690.3,3.71705]
[1727503608753,0.03659055,2690.4,2690.2,3.71718]
[1727503609342,1.19950312,2690.4,2690.2,3.71718]
[1727503609539,0.03659055,2690.4,2690.2,3.71718]
[1727503609733,0.03659055,2690.4,2690.2,7.43429]
[1727503609942,1.19950312,2690.4,2690.2,7.43429]
[1727503610242,0.03659055,2690.4,2690.2,7.43429]
[1727503610450,1.19950312,2690.4,2690.2,3.71711]
[1727503610627,1.19950312,2690.4,2690.2,7.43422]
[1727503610829,0.03659055,2690.4,2690.2,7.43422]
[1727503612570,0.03659055,2690.4,2690.2,3.71711]
[1727503612782,1.19950312,2690.4,2690.2,3.71711]
[1727503613261,0.03659055,2690.4,2690.2,3.71711]
[1727503613464,1.19950312,2690.4,2690.2,3.71711]
[1727503613685,0.03659055,2690.4,2690.2,3.71711]
[1727503613849,1.19950312,2690.4,2690.2,3.71711]
[1727503619079,0.03659055,2690.4,2690.2,3.71711]
[1727503619281,1.19950312,2690.4,2690.2,3.71711]
[1727503619798,0.8461,2690.3,2690.0,3.71738]
[1727503620089,0.03790683,2690.2,2690.0,3.71738]
[1727503620302,2.00901257,2690.3,2690.0,3.71738]
[1727503620476,0.03790219,2690.2,2690.0,5.27352723]
[1727503620682,2.00901257,2690.3,2690.0,5.27352723]
[1727503620882,0.03621378,2690.2,2690.0,5.27352723]
[1727503621124,2.00901257,2690.3,2690.0,5.27352723]
[1727503621419,0.03621378,2690.2,2690.0,5.27352723]
[1727503621714,2.00901257,2690.3,2690.0,5.27352723]
[1727503622022,0.03641346,2690.2,2690.0,5.27352723]
[1727503622516,0.03633061,2690.1,2690.0,5.27352723]
[1727503622692,2.00901257,2690.3,2690.0,5.27352723]
[1727503622894,0.03641346,2690.2,2690.0,5.27352723]
[1727503623090,2.00901257,2690.3,2690.0,5.27352723]
[1727503623291,0.03641346,2690.2,2690.0,5.27352723]
[1727503623484,2.00901257,2690.3,2690.0,5.27352723]
[1727503623679,0.03641346,2690.2,2690.0,3.71738]
[1727503623881,2.00901257,2690.1,2689.6,3.71791]
[1727503624111,2.0077807,2689.9,2689.5,5.27422723]
[1727503624315,2.0077807,2689.9,2689.4,0.8533]
[1727503624316,0.08630427,2689.8,2689.2,4.57176]
[1727503624618,0.8461,2689.7,2689.3,1.55614723]
[1727503624791,1.19798491,2689.8,2689.5,1.55614723]
[1727503624986,0.03613847,2689.6,2689.5,1.55614723]
[1727503625305,0.03597037,2689.6,2689.5,1.55614723]
[1727503625504,1.1616807,2689.8,2689.5,1.55614723]
[1727503625706,1.19772961,2689.7,2689.4,1.55614723]
[1727503626014,2.0077807,2689.6,2689.4,1.55614723]
[1727503626325,0.03588316,2689.5,2689.4,1.55614723]
[1727503627372,0.03588316,2689.5,2689.2,3.71856]
[1727503627646,0.03588316,2689.5,2689.3,1.55614723]
[1727503628649,0.03588316,2689.5,2689.3,5.27457723]
[1727503629317,0.03588316,2689.5,2689.4,3.7183]
[1727503629515,1.1616807,2689.7,2689.4,3.7183]
[1727503629825,0.0355976,2689.6,2689.5,5.27429723]
[1727503630149,2.0141807,2689.8,2689.5,5.27429723]
[1727503630150,1.1616807,2689.7,2689.5,5.27429723]
[1727503630387,0.4231652,2689.6,2689.5,1.55614723]
[1727503630513,0.4231652,2689.6,2689.5,5.27430723]
[1727503631149,0.4231652,2689.6,2689.4,1.55614723]
[1727503632459,0.4231652,2689.6,2689.4,5.27438723]
[1727503633116,0.4231652,2689.6,2689.5,3.71816]
[1727503633315,0.4231652,2689.6,2689.4,2.53954095]
[1727503633516,0.4231652,2689.6,2689.4,6.25780095]
[1727503641578,0.4231652,2689.6,2689.4,5.27440723]
[1727503642084,0.4231652,2689.6,2689.4,5.27436723]
[1727503642682,4.55458,2689.4,2688.7,3.71919]
[1727503642834,0.8362,2689.2,2688.7,5.27531723]
[1727503643036,0.03378999,2689.1,2688.8,3.71909]
[1727503644953,0.03378999,2689.1,2688.7,2.54460295]
[1727503645489,0.42270159,2689.1,2688.7,6.26373295]
[1727503646451,0.42270159,2689.1,2688.8,3.71911]
[1727503647066,0.42270159,2689.1,2689.0,3.71885]
[1727503648863,0.3889116,2689.1,2689.0,3.71885]
[1727503649198,0.3889116,2689.1,2689.0,4.68301706]
[1727503649413,0.8362,2689.7,2689.3,3.71833]